fUST/lending_fUST_20250816
["ID","MTS","AMOUNT","RATE_DAILY","PERIOD"]
[379465749,1755293439664,-500.0,0.00024465,2]
[379465751,1755293439674,-200.0,0.00024466,20]
[379465753,1755293439683,-200.0,0.00024466,20]
[379465755,1755293439693,-200.0,0.00024466,20]
[379465757,1755293439703,-200.0,0.00024466,20]
[379465759,1755293439712,-200.0,0.00024466,20]
[379465761,1755293439723,-200.0,0.00024466,20]
[379465763,1755293439732,-200.0,0.00024466,20]
[379465765,1755293439743,-200.0,0.00024466,20]
[379465767,1755293439752,-200.0,0.00024466,20]
[379465769,1755293439762,-200.0,0.00024466,20]
[379465771,1755293439772,-200.0,0.00024466,20]
[379465773,1755293439781,-200.0,0.00024466,20]
[379465775,1755293439791,-334.0,0.00024466,20]
[379465777,1755293439800,-2367.85912874,0.00024545,2]
[379465779,1755293439810,-803.76949355,0.00024758,2]
[379465781,1755293439821,-6786.14110588,0.000248,2]
[379465783,1755293439833,-500.0,0.00024873,2]
[379465785,1755293439842,-500.0,0.00024873,2]
[379465787,1755293439852,-500.72635386,0.00024873,2]
[379465789,1755293439862,-35324.2151362,0.0002489,2]
[379465792,1755293439874,-12266.70535924,0.000249,2]
[379465795,1755293439894,-500.0,0.00024465,2]
[379465796,1755293439909,-34.94906441,0.000249,2]
[379465799,1755293439921,-1372.13797745,0.000249,2]
[379465801,1755293439933,-1249.0500665,0.000249,2]
[379465803,1755293439945,-813.62704925,0.000249,2]
[379465819,1755293440091,-4677.92048315,0.000249,2]
[379465821,1755293440102,-176.27,0.000249,7]
[379465823,1755293440112,-840564.001907,0.000249,2]
[379465825,1755293440122,-11046.48,0.000249,7]
[379465827,1755293440131,-3246.93,0.000249,7]
[379465829,1755293440140,-216.77912109,0.000249,7]
[379465831,1755293440151,-155.18,0.00024941,7]
[379465832,1755293440160,-759.61176669,0.00024968,2]
[379465833,1755293440170,-9213.30664912,0.00025,2]
[379465834,1755293440179,-1066.84979093,0.00025,2]
[379465835,1755293440188,-2627.15433876,0.00025,2]
[379465836,1755293440198,-208.30659336,0.00025,2]
[379465837,1755293440207,-359.60287581,0.00025,2]
[379465838,1755293440216,-553.26443397,0.00025,2]
[379465839,1755293440226,-500.0,0.00025,2]
[379465840,1755293440235,-150.0,0.00025,2]
[379465841,1755293440246,-150.9999993,0.00025,5]
[379465842,1755293440256,-600.0,0.00025,2]
[379465843,1755293440265,-713.5358871,0.00025001,2]
[379465844,1755293440275,-2367.85912874,0.00025061,2]
[379465845,1755293440284,-151.0,0.00025108,6]
[379465846,1755293440293,-736.52,0.0002526,3]
[379465847,1755293440303,-368.26,0.0002526,3]
[379465848,1755293440312,-250.0,0.00025421,2]
[379465849,1755293440322,-1000.0,0.00025421,2]
[379465850,1755293440332,-1000.0,0.00025421,2]
[379465851,1755293440342,-800.0,0.00025424,2]
[379465852,1755293440351,-1000.0,0.000255,2]
[379465853,1755293440361,-1152.0,0.00025511,2]
[379465854,1755293440370,-2367.85912874,0.00025577,3]
[379465855,1755293440379,-3924.91279291,0.0002559,2]
[379465856,1755293440388,-232.08354597,0.000256,7]
[379465857,1755293440398,-151.0,0.00025609,6]
[379465858,1755293440407,-2200.0,0.00025754,2]
[379465859,1755293440417,-153.0,0.00025778,2]
[379465860,1755293440426,-153.0,0.00025778,2]
[379465861,1755293440435,-153.0,0.00025778,2]
[379465862,1755293440445,-153.0,0.00025778,2]
[379465863,1755293440454,-153.0,0.00025778,2]
[379465864,1755293440464,-153.0,0.00025778,2]
[379465865,1755293440474,-153.0,0.00025778,2]
[379465866,1755293440483,-153.0,0.00025778,2]
[379465867,1755293440493,-153.0,0.00025778,2]
[379465868,1755293440503,-153.0,0.00025778,2]
[379465869,1755293440513,-153.0,0.00025778,2]
[379465870,1755293440522,-153.0,0.00025778,2]
[379465871,1755293440532,-153.0,0.00025778,2]
[379465872,1755293440542,-153.0,0.00025778,2]
[379465873,1755293440551,-153.0,0.00025778,2]
[379465874,1755293440561,-153.0,0.00025778,2]
[379465875,1755293440571,-153.0,0.00025778,2]
[379465876,1755293440581,-153.0,0.00025778,2]
[379465877,1755293440590,-153.0,0.00025778,2]
[379465878,1755293440600,-153.0,0.00025778,2]
[379465879,1755293440609,-153.0,0.00025778,2]
[379465880,1755293440618,-153.0,0.00025778,2]
[379465881,1755293440628,-153.0,0.00025778,2]
[379465882,1755293440637,-153.0,0.00025778,2]
[379465883,1755293440646,-153.0,0.00025778,2]
[379465884,1755293440655,-153.0,0.00025778,2]
[379465885,1755293440664,-153.0,0.00025778,2]
[379465886,1755293440673,-153.0,0.00025778,2]
[379465887,1755293440682,-153.0,0.00025778,2]
[379465888,1755293440691,-153.0,0.00025778,2]
[379465889,1755293440701,-153.0,0.00025778,2]
[379465890,1755293440710,-153.0,0.00025778,2]
[379465891,1755293440719,-153.0,0.00025778,2]
[379465892,1755293440728,-153.0,0.00025778,2]
[379465893,1755293440738,-153.0,0.00025778,2]
[379465894,1755293440747,-153.0,0.00025778,2]
[379465895,1755293440756,-153.0,0.00025778,2]
[379465896,1755293440765,-153.0,0.00025778,2]
[379465897,1755293440774,-153.0,0.00025778,2]
[379465898,1755293440783,-153.0,0.00025778,2]
[379465899,1755293440792,-153.0,0.00025778,2]
[379465900,1755293440802,-153.0,0.00025778,2]
[379465901,1755293440811,-153.0,0.00025778,2]
[379465902,1755293440821,-153.0,0.00025778,2]
[379465903,1755293440833,-153.0,0.00025778,2]
[379465904,1755293440842,-153.0,0.00025778,2]
[379465905,1755293440852,-153.0,0.00025778,2]
[379465906,1755293440861,-153.0,0.00025778,2]
[379465907,1755293440870,-153.0,0.00025778,2]
[379465908,1755293440881,-153.0,0.00025778,2]
[379465909,1755293440890,-153.0,0.00025778,2]
[379465910,1755293440900,-153.0,0.00025778,2]
[379465911,1755293440909,-153.0,0.00025778,2]
[379465912,1755293440919,-153.0,0.00025778,2]
[379465913,1755293440929,-153.0,0.00025778,2]
[379465914,1755293440939,-153.0,0.00025778,2]
[379465915,1755293440948,-153.0,0.00025778,2]
[379465916,1755293440957,-153.0,0.00025778,2]
[379465917,1755293440965,-153.0,0.00025778,2]
[379465918,1755293440975,-153.0,0.00025778,2]
[379465919,1755293440984,-153.0,0.00025778,2]
[379465920,1755293440995,-153.0,0.00025778,2]
[379465921,1755293441005,-153.0,0.00025778,2]
[379465922,1755293441014,-153.0,0.00025778,2]
[379465923,1755293441024,-153.0,0.00025778,2]
[379465924,1755293441033,-153.0,0.00025778,2]
[379465925,1755293441042,-153.0,0.00025778,2]
[379465926,1755293441051,-153.0,0.00025778,2]
[379465927,1755293441060,-153.0,0.00025778,2]
[379465928,1755293441070,-153.0,0.00025778,2]
[379465929,1755293441079,-153.0,0.00025778,2]
[379465930,1755293441089,-153.0,0.00025778,2]
[379465931,1755293441098,-153.0,0.00025778,2]
[379465932,1755293441107,-153.0,0.00025778,2]
[379465933,1755293441117,-153.0,0.00025778,2]
[379465934,1755293441126,-153.0,0.00025778,2]
[379465935,1755293441136,-153.0,0.00025778,2]
[379465936,1755293441145,-153.0,0.00025778,2]
[379465937,1755293441155,-153.0,0.00025778,2]
[379465938,1755293441164,-153.0,0.00025778,2]
[379465939,1755293441173,-153.0,0.00025778,2]
[379465940,1755293441182,-153.0,0.00025778,2]
[379465941,1755293441192,-153.0,0.00025778,2]
[379465942,1755293441201,-153.0,0.00025778,2]
[379465943,1755293441210,-153.0,0.00025778,2]
[379465944,1755293441220,-153.0,0.00025778,2]
[379465945,1755293441229,-153.0,0.00025778,2]
[379465946,1755293441238,-153.0,0.00025778,2]
[379465947,1755293441248,-153.0,0.00025778,2]
[379465948,1755293441257,-153.0,0.00025778,2]
[379465949,1755293441266,-153.0,0.00025778,2]
[379465950,1755293441276,-153.0,0.00025778,2]
[379465951,1755293441285,-153.0,0.00025778,2]
[379465952,1755293441295,-153.0,0.00025778,2]
[379465953,1755293441303,-153.0,0.00025778,2]
[379465954,1755293441313,-153.0,0.00025778,2]
[379465955,1755293441323,-153.0,0.00025778,2]
[379465956,1755293441332,-153.0,0.00025778,2]
[379465957,1755293441342,-153.0,0.00025778,2]
[379465958,1755293441351,-153.0,0.00025778,2]
[379465959,1755293441360,-153.0,0.00025778,2]
[379465960,1755293441370,-531.59,0.00025791,2]
[379465961,1755293441379,-350.0,0.00025968,2]
[379465962,1755293441388,-1500.0,0.00025968,2]
[379465963,1755293441398,-1500.0,0.00025968,2]
[379465964,1755293441407,-500.0,0.00025973,2]
[379465965,1755293441417,-500.0,0.00025973,2]
[379465966,1755293441426,-520.51100165,0.00026,2]
[379465967,1755293441435,-84580.25367818,0.00026,30]
[379465968,1755293441444,-216.77912109,0.00026,30]
[379465969,1755293441454,-528.28344625,0.00026,30]
[379465970,1755293441463,-151.0,0.00026028,2]
[379465971,1755293441472,-151.0,0.00026028,2]
[379465972,1755293441481,-151.0,0.00026028,2]
[379465973,1755293441491,-151.0,0.00026028,2]
[379465974,1755293441500,-500.0,0.00026028,2]
[379465975,1755293441510,-2367.85912874,0.00026094,4]
[379465976,1755293441519,-151.0,0.00026111,6]
[379465977,1755293441528,-803.76949355,0.00026129,2]
[379465978,1755293441538,-6786.14110586,0.00026151,2]
[379465979,1755293441547,-191.23953148,0.0002616,2]
[379465981,1755293441557,-11046.48,0.000262,7]
[379465983,1755293441566,-3246.93,0.000262,7]
[379465985,1755293441575,-231.014556,0.00026204,2]
[379465987,1755293441584,-3924.91279291,0.00026205,2]
[379465989,1755293441594,-151.0,0.00026214,2]
[379465991,1755293441603,-151.0,0.00026214,2]
[379465993,1755293441612,-151.0,0.00026214,2]
[379465995,1755293441621,-151.0,0.00026214,2]
[379465997,1755293441630,-500.0,0.00026214,2]
[379465998,1755293441641,-151.0,0.00026214,2]
[379466001,1755293441651,-500.0,0.00026214,2]
[379466002,1755293441661,-151.0,0.00026214,2]
[379466005,1755293441671,-500.0,0.00026214,2]
[379466006,1755293441681,-17842.522448,0.00026214,2]
[379466008,1755293441690,-151.0,0.00026214,2]
[379466011,1755293441700,-500.0,0.00026214,2]
[379466013,1755293441711,-151.0,0.00026214,2]
[379466014,1755293441720,-500.0,0.00026214,2]
[379466016,1755293441730,-500.0,0.00026214,2]
[379466019,1755293441740,-151.0,0.00026214,2]
[379466020,1755293441752,-500.0,0.00026214,2]
[379466022,1755293441761,-220.41087772,0.00026214,2]
[379466024,1755293441770,-151.0,0.00026214,2]
[379466027,1755293441781,-151.0,0.00026214,2]
[379466029,1755293441791,-151.0,0.00026214,2]
[379466031,1755293441800,-151.0,0.00026214,2]
[379466033,1755293441809,-151.0,0.00026214,2]
[379466035,1755293441819,-151.0,0.00026214,2]
[379466037,1755293441832,-151.0,0.00026214,2]
[379466039,1755293441841,-151.0,0.00026214,2]
[379466041,1755293441850,-151.0,0.00026214,2]
[379466043,1755293441859,-151.0,0.00026302,2]
[379466044,1755293441869,-197.999999,0.00026302,2]
[379466046,1755293441878,-151.0,0.00026302,2]
[379466048,1755293441887,-204.51895134,0.00026302,2]
[379466050,1755293441897,-500.0,0.00026302,2]
[379466052,1755293441907,-20414.39,0.000265,2]
[379466054,1755293441916,-450.0,0.00026516,2]
[379466056,1755293441924,-246.06507833,0.00026516,2]
[379466058,1755293441934,-2000.0,0.00026516,2]
[379466060,1755293441943,-800.0,0.0002652,2]
[379466062,1755293441953,-500.88170187,0.00026521,2]
[379466064,1755293441963,-1000.0,0.00026521,2]
[379466066,1755293441972,-151.0,0.00026576,2]
[379466068,1755293441981,-262.14830106,0.00026576,2]
[379466070,1755293441990,-500.0,0.00026576,2]
[379466072,1755293442000,-2367.85912874,0.0002661,5]
[379466074,1755293442009,-151.0,0.00026613,7]
[379466076,1755293442019,-456.97595022,0.00026787,2]
[379466078,1755293442028,-3924.91279291,0.0002679,2]
[379466080,1755293442037,-500.0,0.0002685,2]
[379466082,1755293442047,-200.0,0.00026861,20]
[379466084,1755293442056,-200.0,0.00026861,20]
[379466086,1755293442066,-200.0,0.00026861,20]
[379466088,1755293442076,-200.0,0.00026861,20]
[379466090,1755293442085,-200.0,0.00026861,20]
[379466103,1755293442095,-200.0,0.00026861,20]
[379466105,1755293442199,-200.0,0.00026861,20]
[379466107,1755293442208,-200.0,0.00026861,20]
[379466109,1755293442218,-200.0,0.00026861,20]
[379466111,1755293442227,-200.0,0.00026861,20]
[379466113,1755293442236,-200.0,0.00026861,20]
[379466115,1755293442246,-200.0,0.00026861,20]
[379466117,1755293442256,-200.0,0.00026861,20]
[379466119,1755293442265,-200.0,0.00026861,20]
[379466121,1755293442275,-200.0,0.00026861,20]
[379466123,1755293442284,-200.0,0.00026861,20]
[379466125,1755293442294,-200.0,0.00026861,20]
[379466127,1755293442303,-200.0,0.00026861,20]
[379466129,1755293442312,-200.0,0.00026861,20]
[379466131,1755293442322,-200.0,0.00026861,20]
[379466133,1755293442331,-390.0,0.00026861,20]
[379466135,1755293442340,-3924.91279291,0.0002699,2]
[379466137,1755293442350,-30306.3168974,0.00027,22]
[379466139,1755293442359,-843.47195277,0.00027,7]
[379466141,1755293442368,-417.15472785,0.00027,7]
[379466143,1755293442378,-550.0,0.00027064,2]
[379466145,1755293442387,-2500.0,0.00027064,2]
[379466147,1755293442397,-1500.0,0.00027068,2]
[379466149,1755293442407,-151.0,0.00027114,7]
[379466151,1755293442416,-500.0,0.00027124,2]
[379466153,1755293442425,-160.0,0.00027126,7]
[379466155,1755293442435,-2367.85912874,0.00027126,7]
[379466157,1755293442444,-5550.34001896,0.000273,7]
[379466159,1755293442453,-196.92392414,0.0002739,2]
[379466161,1755293442463,-153.43776749,0.00027397,2]
[379466163,1755293442472,-500.0,0.00027398,2]
[379466165,1755293442482,-356.4416263,0.00027398,2]
[379466167,1755293442494,-1424.34073869,0.00027398,2]
[379466169,1755293442504,-418.90256455,0.00027398,2]
[379466172,1755293442514,-3246.93,0.000274,7]
[379466173,1755293442523,-500.0,0.00027473,5]
[379466175,1755293442532,-1000.0,0.00027485,2]
[379466177,1755293442541,-2000.0,0.000275,2]
[379466179,1755293442551,-232.111669,0.000275,10]
[379466181,1755293442560,-4000.0,0.000275,2]
[379466183,1755293442570,-45184.13464889,0.000275,2]
[379466184,1755293442579,-11046.48,0.000275,7]
[379466185,1755293442588,-200.0,0.000275,18]
[379466186,1755293442597,-216.77912109,0.000275,7]
[379466187,1755293442606,-6786.14110586,0.00027501,2]
[379466188,1755293442615,-803.76949355,0.00027501,2]
[379466189,1755293442624,-972.0,0.00027518,2]
[379466190,1755293442633,-636.0,0.00027518,2]
[379466191,1755293442643,-2152.0,0.00027518,2]
[379466192,1755293442653,-408.0,0.00027518,2]
[379466193,1755293442662,-3924.91279291,0.00027563,2]
[379466194,1755293442672,-500.0,0.00027573,5]
[379466195,1755293442681,-150.0,0.00027573,5]
[379466196,1755293442690,-430.30698584,0.00027573,5]
[379466197,1755293442699,-150.0,0.00027573,5]
[379466198,1755293442708,-151.0,0.00027574,7]
[379466199,1755293442717,-151.0,0.00027574,7]
[379466200,1755293442727,-151.0,0.00027574,7]
[379466201,1755293442736,-151.0,0.00027574,7]
[379466202,1755293442745,-151.0,0.00027574,7]
[379466203,1755293442754,-151.0,0.00027574,7]
[379466204,1755293442763,-151.0,0.00027574,7]
[379466205,1755293442773,-151.0,0.00027574,7]
[379466206,1755293442781,-151.0,0.00027574,7]
[379466207,1755293442791,-151.0,0.00027574,7]
[379466208,1755293442800,-248.429432,0.00027574,7]
[379466209,1755293442808,-151.0,0.00027574,7]
[379466210,1755293442818,-151.0,0.00027574,7]
[379466211,1755293442832,-151.0,0.00027574,7]
[379466212,1755293442841,-151.0,0.00027574,7]
[379466213,1755293442850,-151.0,0.00027574,7]
[379466214,1755293442860,-151.0,0.00027574,7]
[379466215,1755293442871,-151.0,0.00027574,7]
[379466216,1755293442880,-151.0,0.00027574,7]
[379466217,1755293442890,-151.0,0.00027574,7]
[379466218,1755293442900,-151.0,0.00027574,7]
[379466219,1755293442909,-151.0,0.00027574,7]
[379466220,1755293442918,-198.56527127,0.00027574,7]
[379466221,1755293442928,-151.0,0.00027574,7]
[379466222,1755293442938,-152.159054,0.00027574,7]
[379466223,1755293442947,-3924.91279291,0.00027578,2]
[379466224,1755293442956,-151.0,0.0002758,7]
[379466225,1755293442966,-151.0,0.0002758,7]
[379466226,1755293442975,-151.0,0.0002758,7]
[379466227,1755293442984,-151.0,0.0002758,7]
[379466228,1755293442994,-151.0,0.0002758,7]
[379466229,1755293443003,-151.0,0.0002758,7]
[379466230,1755293443013,-151.0,0.0002758,7]
[379466231,1755293443023,-151.0,0.0002758,7]
[379466232,1755293443033,-151.0,0.0002758,7]
[379466233,1755293443042,-151.0,0.0002758,7]
[379466234,1755293443052,-151.0,0.0002758,7]
[379466235,1755293443062,-277.458135,0.0002758,7]
[379466236,1755293443071,-160.0,0.00027581,10]
[379466237,1755293443081,-232.08354597,0.00027582,3]
[379466238,1755293443091,-232.08354597,0.00027582,10]
[379466239,1755293443100,-232.08354597,0.00027582,30]
[379466240,1755293443110,-232.08354597,0.00027582,7]
[379466241,1755293443119,-151.0,0.00027582,7]
[379466242,1755293443129,-151.0,0.00027582,7]
[379466243,1755293443138,-151.0,0.00027582,7]
[379466244,1755293443148,-151.0,0.00027582,7]
[379466245,1755293443157,-151.0,0.00027582,7]
[379466246,1755293443167,-151.0,0.00027582,7]
[379466247,1755293443176,-151.0,0.00027582,7]
[379466248,1755293443185,-151.0,0.00027582,7]
[379466249,1755293443195,-151.0,0.00027582,7]
[379466250,1755293443204,-151.0,0.00027582,7]
[379466251,1755293443214,-151.0,0.00027582,7]
[379466252,1755293443223,-151.0,0.00027582,7]
[379466253,1755293443233,-151.0,0.00027582,7]
[379466254,1755293443243,-151.0,0.00027582,7]
[379466255,1755293443252,-151.0,0.00027582,7]
[379466256,1755293443262,-235.0,0.00027582,7]
[379466257,1755293443272,-151.0,0.00027582,7]
[379466258,1755293443281,-151.0,0.00027582,7]
[379466259,1755293443291,-151.0,0.00027582,7]
[379466260,1755293443300,-151.0,0.00027583,2]
[379466261,1755293443310,-18502.69577858,0.00027583,2]
[379466262,1755293443320,-200.51664821,0.00027584,10]
[379466263,1755293443331,-191.050828,0.00027585,7]
[379466264,1755293443341,-191.050828,0.00027585,7]
[379466265,1755293443351,-191.050828,0.00027585,7]
[379466267,1755293443360,-191.050828,0.00027585,7]
[379466269,1755293443370,-191.050828,0.00027585,7]
[379466270,1755293443379,-191.050828,0.00027585,7]
[379466272,1755293443389,-191.050828,0.00027585,7]
[379466273,1755293443406,-191.050828,0.00027585,7]
[379466274,1755293443425,-191.050828,0.00027585,7]
[379466276,1755293443435,-191.050828,0.00027585,7]
[379466278,1755293443451,-191.050828,0.00027585,7]
[379466280,1755293443472,-191.050828,0.00027585,7]
[379466282,1755293443484,-191.050828,0.00027585,7]
[379466284,1755293443493,-191.050828,0.00027585,7]
[379466286,1755293443503,-151.0,0.00027585,7]
[379466288,1755293443512,-151.0,0.00027585,7]
[379466290,1755293443521,-151.0,0.00027585,7]
[379466292,1755293443531,-151.0,0.00027585,7]
[379466293,1755293443540,-152.301724,0.00027585,7]
[379466294,1755293443549,-151.0,0.00027585,7]
[379466295,1755293443559,-151.0,0.00027585,7]
[379466296,1755293443568,-151.0,0.00027585,7]
[379466297,1755293443578,-151.0,0.00027585,7]
[379466298,1755293443588,-151.0,0.00027585,7]
[379466299,1755293443598,-151.0,0.00027585,7]
[379466300,1755293443608,-151.0,0.00027585,7]
[379466301,1755293443617,-151.0,0.00027585,7]
[379466302,1755293443628,-3924.91279291,0.00027585,2]
[379466303,1755293443637,-283.296442,0.00027588,7]
[379466304,1755293443646,-283.296442,0.00027588,7]
[379466305,1755293443657,-283.296442,0.00027588,7]
[379466306,1755293443667,-283.296442,0.00027588,7]
[379466307,1755293443676,-283.296442,0.00027588,7]
[379466308,1755293443686,-283.296442,0.00027588,7]
[379466309,1755293443696,-283.296442,0.00027588,7]
[379466310,1755293443705,-283.296442,0.00027588,7]
[379466311,1755293443715,-283.296442,0.00027588,7]
[379466312,1755293443724,-283.296442,0.00027588,7]
[379466313,1755293443734,-283.296442,0.00027588,7]
[379466314,1755293443743,-283.296442,0.00027588,7]
[379466315,1755293443753,-283.296442,0.00027588,7]
[379466316,1755293443762,-283.296442,0.00027588,7]
[379466317,1755293443771,-283.296442,0.00027588,7]
[379466318,1755293443781,-283.296442,0.00027588,7]
[379466319,1755293443790,-283.296442,0.00027588,7]
[379466320,1755293443799,-283.296442,0.00027588,7]
[379466321,1755293443809,-151.0,0.00027588,7]
[379466322,1755293443821,-151.0,0.00027588,7]
[379466323,1755293443832,-151.0,0.00027588,7]
[379466324,1755293443842,-151.0,0.00027588,7]
[379466325,1755293443851,-154.213001,0.00027588,7]
[379466326,1755293443861,-151.0,0.00027588,7]
[379466327,1755293443871,-151.0,0.00027588,7]
[379466328,1755293443880,-316.0342,0.00027588,7]
[379466329,1755293443890,-316.0342,0.00027588,7]
[379466330,1755293443901,-316.0342,0.00027588,7]
[379466331,1755293443911,-316.0342,0.00027588,7]
[379466332,1755293443919,-316.0342,0.00027588,7]
[379466333,1755293443929,-316.0342,0.00027588,7]
[379466334,1755293443938,-316.0342,0.00027588,7]
[379466335,1755293443948,-316.0342,0.00027588,7]
[379466336,1755293443958,-316.0342,0.00027588,7]
[379466337,1755293443967,-151.0,0.00027588,7]
[379466338,1755293443977,-151.0,0.00027588,7]
[379466339,1755293443987,-151.0,0.00027588,7]
[379466340,1755293443996,-212.334282,0.00027588,7]
[379466341,1755293444006,-151.0,0.00027588,7]
[379466342,1755293444015,-151.0,0.00027588,7]
[379466343,1755293444024,-151.0,0.00027588,7]
[379466344,1755293444034,-151.0,0.00027588,7]
[379466345,1755293444043,-151.0,0.00027588,7]
[379466346,1755293444053,-151.0,0.00027588,7]
[379466347,1755293444062,-151.0,0.00027588,7]
[379466348,1755293444074,-151.0,0.00027588,7]
[379466349,1755293444083,-151.0,0.00027588,7]
[379466350,1755293444182,-151.0,0.00027588,7]
[379466351,1755293444192,-164.590713,0.00027588,7]
[379466352,1755293444202,-164.590713,0.00027588,7]
[379466353,1755293444211,-164.590713,0.00027588,7]
[379466354,1755293444220,-164.590713,0.00027588,7]
[379466355,1755293444230,-164.590713,0.00027588,7]
[379466356,1755293444240,-164.590713,0.00027588,7]
[379466357,1755293444249,-164.590713,0.00027588,7]
[379466358,1755293444259,-164.590713,0.00027588,7]
[379466359,1755293444268,-164.590713,0.00027588,7]
[379466360,1755293444277,-164.590713,0.00027588,7]
[379466361,1755293444287,-164.590713,0.00027588,7]
[379466362,1755293444297,-164.590713,0.00027588,7]
[379466363,1755293444306,-164.590713,0.00027588,7]
[379466364,1755293444315,-164.590713,0.00027588,7]
[379466365,1755293444328,-164.590713,0.00027588,7]
[379466366,1755293444338,-164.590713,0.00027588,7]
[379466367,1755293444348,-164.590713,0.00027588,7]
[379466368,1755293444359,-164.590713,0.00027588,7]
[379466369,1755293444368,-164.590713,0.00027588,7]
[379466370,1755293444378,-164.590711,0.00027588,7]
[379466371,1755293444387,-156.960314,0.00027588,7]
[379466372,1755293444397,-196.733415,0.00027588,7]
[379466373,1755293444406,-196.733415,0.00027588,7]
[379466374,1755293444415,-196.733415,0.00027588,7]
[379466375,1755293444425,-196.733415,0.00027588,7]
[379466376,1755293444434,-196.733415,0.00027588,7]
[379466377,1755293444444,-196.733415,0.00027588,7]
[379466378,1755293444454,-196.733415,0.00027588,7]
[379466379,1755293444464,-196.733415,0.00027588,7]
[379466380,1755293444474,-196.733415,0.00027588,7]
[379466381,1755293444484,-196.733415,0.00027588,7]
[379466382,1755293444493,-196.733415,0.00027588,7]
[379466383,1755293444503,-196.733415,0.00027588,7]
[379466384,1755293444513,-196.733415,0.00027588,7]
[379466385,1755293444522,-196.733415,0.00027588,7]
[379466386,1755293444532,-196.733415,0.00027588,7]
[379466387,1755293444543,-196.733415,0.00027588,7]
[379466388,1755293444552,-196.733415,0.00027588,7]
[379466389,1755293444562,-196.733415,0.00027588,7]
[379466390,1755293444572,-196.733415,0.00027588,7]
[379466391,1755293444582,-196.733408,0.00027588,7]
[379466392,1755293444591,-1000.0,0.00027588,2]
[379466393,1755293444600,-1000.0,0.00027588,2]
[379466394,1755293444609,-1000.0,0.00027588,2]
[379466395,1755293444619,-1000.0,0.00027588,2]
[379466396,1755293444628,-1000.0,0.00027588,2]
[379466398,1755293444637,-1000.0,0.00027588,2]
[379466400,1755293444646,-1000.0,0.00027588,2]
[379466402,1755293444656,-1000.0,0.00027588,2]
[379466404,1755293444665,-1000.0,0.00027588,2]
[379466406,1755293444674,-1000.0,0.00027588,2]
[379466407,1755293444683,-1000.0,0.00027588,2]
[379466408,1755293444692,-1000.0,0.00027588,2]
[379466409,1755293444702,-1000.0,0.00027588,2]
[379466410,1755293444711,-1000.0,0.00027588,2]
[379466411,1755293444721,-1000.0,0.00027588,2]
[379466412,1755293444731,-1000.0,0.00027588,2]
[379466413,1755293444740,-1000.0,0.00027588,2]
[379466414,1755293444750,-1000.0,0.00027588,2]
[379466416,1755293444759,-1000.0,0.00027588,2]
[379466417,1755293444768,-1000.0,0.00027588,2]
[379466418,1755293444777,-1000.0,0.00027588,2]
[379466420,1755293444787,-1000.0,0.00027588,2]
[379466422,1755293444796,-1000.0,0.00027588,2]
[379466424,1755293444805,-1000.0,0.00027588,2]
[379466426,1755293444814,-1148.068525,0.00027588,2]